[Event "Championnat du monde jeunes U10"]
[Date "2024.11.23"]
[White "Ivanovic, Leonid"]
[Black "Makhsatuly, Rakhim"]
[WhiteElo "1990"]
[BlackElo "1683"]
[Round "8.38"]
[Result "1/2-1/2"]
[TimeControl "5400+30"]

1. d4 {[%clk 1:30:51]} 1... Nf6 {[%clk 1:30:55]} 2. c4 {[%clk 1:31:12]} 2... g6
{[%clk 1:31:15]} 3. Nc3 {[%clk 1:31:31]} 3... Bg7 {[%clk 1:31:39]} 4. e4 {[%clk
1:31:55]} 4... d6 {[%clk 1:32:07]} 5. Be2 {[%clk 1:32:12]} 5... O-O {[%clk
1:31:44]} 6. Bg5 {[%clk 1:32:04]} 6... Nbd7 {[%clk 1:29:41]} 7. Qd2 {[%clk
1:31:42]} 7... c5 {[%clk 1:18:55]} 8. d5 {[%clk 1:30:22]} 8... Qa5 {[%clk
1:16:27]} 9. Nf3 {[%clk 1:21:46]} 9... a6 {[%clk 1:15:14]} 10. O-O {[%clk
1:10:05]} 10... Rb8 {[%clk 1:10:19]} 11. a4 {[%clk 1:01:39]} 11... Qc7 {[%clk
1:06:52]} 12. Bh6 {[%clk 0:58:25]} 12... Re8 {[%clk 1:03:11]} 13. Bxg7 {[%clk
0:58:21]} 13... Kxg7 {[%clk 1:03:34]} 14. Qf4 {[%clk 0:52:07]} 14... h6 {[%clk
0:57:43]} 15. Rad1 {[%clk 0:47:25]} 15... e6 {[%clk 0:48:13]} 16. dxe6 {[%clk
0:44:11]} 16... Rxe6 {[%clk 0:48:36]} 17. h3 {[%clk 0:35:05]} 17... Qc6 {[%clk
0:42:52]} 18. Bd3 {[%clk 0:29:52]} 18... Ne5 {[%clk 0:40:32]} 19. Nxe5 {[%clk
0:30:13]} 19... dxe5 {[%clk 0:40:11]} 20. Qe3 {[%clk 0:30:26]} 20... b6 {[%clk
0:38:43]} 21. Bc2 {[%clk 0:29:24]} 21... Bb7 {[%clk 0:37:59]} 22. Nd5 {[%clk
0:28:15]} 22... Ree8 {[%clk 0:26:46]} 23. f4 {[%clk 0:23:02]} 23... Ng8 {[%clk
0:21:36]} 24. f5 {[%clk 0:22:13]} 24... Rbd8 {[%clk 0:20:54]} 25. h4 {[%clk
0:19:27]} 25... Rd6 {[%clk 0:17:53]} 26. Qf3 {[%clk 0:17:46]} 26... Rf8 {[%clk
0:15:08]} 27. h5 {[%clk 0:16:25]} 27... g5 {[%clk 0:10:21]} 28. f6+ {[%clk
0:15:02]} 28... Kh8 {[%clk 0:10:02]} 29. Qc3 {[%clk 0:15:04]} 29... Re6 {[%clk
0:10:17]} 30. Rf5 {[%clk 0:14:42]} 30... Rfe8 {[%clk 0:10:23]} 31. Rdf1 {[%clk
0:14:06]} 31... Qd6 {[%clk 0:10:22]} 32. Qf3 {[%clk 0:09:02]} 32... b5 {[%clk
0:05:14]} 33. axb5 {[%clk 0:08:22]} 33... axb5 {[%clk 0:05:42]} 34. cxb5 {[%clk
0:07:49]} 34... Bxd5 {[%clk 0:05:20]} 35. exd5 {[%clk 0:08:18]} 35... e4 {[%clk
0:05:49]} 36. Qb3 {[%clk 0:06:22]} 36... Re5 {[%clk 0:05:14]} 37. Rxe5 {[%clk
0:05:50]} 37... Qxe5 {[%clk 0:05:14]} 38. d6 {[%clk 0:05:47]} 38... Qd4+ {[%clk
0:05:29]} 39. Kh1 {[%clk 0:06:00]} 39... c4 {[%clk 0:05:55]} 40. Qc3 {[%clk
0:05:52]} 40... Qxd6 {[%clk 0:04:20]} 41. Qxc4 {[%clk 0:06:21]} 41... Qe6 {[%clk
0:04:33]} 42. Qxe6 {[%clk 0:05:47]} 42... Rxe6 {[%clk 0:05:02]} 43. Bb3 {[%clk
0:06:17]} 43... Rb6 44. Bxf7 {[%clk 0:06:31]} 44... Nxf6 {[%clk 0:03:09]} 45.
Kg1 {[%clk 0:04:54]} 45... Kg7 {[%clk 0:03:21]} 46. Bc4 {[%clk 0:05:22]} 46...
Nxh5 {[%clk 0:03:37]} 47. Rf7+ {[%clk 0:04:51]} 47... Kg6 {[%clk 0:03:49]} 48.
Rc7 {[%clk 0:02:52]} 48... Kf6 {[%clk 0:02:35]} 49. Rc6+ {[%clk 0:02:14]} 49...
Rxc6 50. bxc6 {[%clk 0:02:43]} 50... Ke7 {[%clk 0:03:28]} 51. b4 {[%clk
0:02:30]} 51... Kd6 {[%clk 0:03:48]} 52. b5 {[%clk 0:02:57]} 52... e3 {[%clk
0:03:31]} 53. Kf1 {[%clk 0:02:35]} 53... Ng3+ {[%clk 0:03:53]} 54. Ke1 {[%clk
0:03:04]} 54... h5 {[%clk 0:03:54]} 55. Bd5 {[%clk 0:02:15]} 55... Kc7 {[%clk
0:04:01]} 56. Kd1 {[%clk 0:02:17]} 56... g4 {[%clk 0:04:16]} 57. Kc2 {[%clk
0:01:25]} 57... h4 {[%clk 0:03:11]} 58. Be6 {[%clk 0:01:40]} 58... h3 {[%clk
0:03:28]} 59. gxh3 {[%clk 0:02:05]} 59... gxh3 {[%clk 0:03:58]} 60. Bxh3 {[%clk
0:02:24]} 60... e2 {[%clk 0:04:23]} 61. Kd2 Ne4+ {[%clk 0:04:43]} 62. Ke1 {[%clk
0:02:37]} 62... Nc3 {[%clk 0:05:05]} 63. Bg4 {[%clk 0:02:41]} 63... Nxb5 {[%clk
0:05:30]} 64. Kxe2 {[%clk 0:03:10]} 64... Kxc6 {[%clk 0:05:49]} 65. Kd3 1/2-1/2

[Variant "Standard"]
[Site "Europe Echecs"]

[Event "Championnat du monde jeunes U10"]
[Date "2024.11.23"]
[White "Barsov, Mikhail"]
[Black "Larion, Iustin"]
[WhiteElo "1668"]
[BlackElo "1925"]
[Round "8.39"]
[Result "0-1"]
[TimeControl "5400+30"]

1. c4 {[%clk 1:30:55]} 1... c5 {[%clk 1:30:42]} 2. g3 {[%clk 1:31:22]} 2... Nc6
{[%clk 1:30:49]} 3. Bg2 {[%clk 1:31:45]} 3... e6 {[%clk 1:30:30]} 4. Nc3 {[%clk
1:31:56]} 4... Nf6 {[%clk 1:30:23]} 5. Nf3 {[%clk 1:30:16]} 5... d5 {[%clk
1:30:40]} 6. cxd5 {[%clk 1:30:43]} 6... exd5 {[%clk 1:31:03]} 7. d4 {[%clk
1:24:49]} 7... cxd4 {[%clk 1:31:23]} 8. Nxd4 {[%clk 1:25:14]} 8... Bc5 {[%clk
1:31:27]} 9. Be3 {[%clk 1:25:33]} 9... Qb6 {[%clk 1:31:14]} 10. Nxc6 {[%clk
1:20:44]} 10... Bxe3 {[%clk 1:20:11]} 11. Nxd5 {[%clk 1:12:57]} 11... Bxf2+
{[%clk 1:19:49]} 12. Kf1 {[%clk 1:13:16]} 12... Nxd5 {[%clk 1:13:36]} 13. Qxd5
{[%clk 1:12:36]} 13... Be6 {[%clk 1:06:53]} 14. Qe4 {[%clk 0:59:54]} 14... bxc6
{[%clk 1:01:44]} 15. Qxc6+ {[%clk 1:00:06]} 15... Ke7 {[%clk 1:02:04]} 16. Qxb6
{[%clk 0:59:53]} 16... Bxb6 {[%clk 1:02:28]} 17. Bxa8 {[%clk 1:00:19]} 17...
Rxa8 {[%clk 1:02:48]} 18. b3 {[%clk 0:59:17]} 18... Bd5 {[%clk 1:03:06]} 19. Rg1
{[%clk 0:59:18]} 19... Bxg1 {[%clk 1:03:29]} 20. Kxg1 {[%clk 0:59:45]} 20... Rc8
{[%clk 1:03:40]} 21. Rd1 {[%clk 0:59:38]} 21... Ke6 {[%clk 1:03:56]} 22. Rd4
{[%clk 0:58:20]} 22... Rc2 {[%clk 1:02:53]} 23. Ra4 {[%clk 0:58:22]} 23... Rxe2
{[%clk 1:02:46]} 24. Rxa7 {[%clk 0:57:37]} 24... Rg2+ {[%clk 1:03:07]} 25. Kf1
{[%clk 0:58:02]} 25... Rxh2 {[%clk 1:03:28]} 26. Ra6+ {[%clk 0:56:21]} 26... Ke5
{[%clk 1:03:48]} 27. Ra5 {[%clk 0:56:35]} 27... Rb2 {[%clk 1:04:05]} 28. g4
{[%clk 0:56:02]} 0-1

[Variant "Standard"]
[Site "Europe Echecs"]

[Event "Championnat du monde jeunes U10"]
[Date "2024.11.23"]
[White "Popov, Aleksandr And"]
[Black "Gusev, Daniil Den"]
[WhiteElo "1651"]
[BlackElo "1863"]
[Round "8.40"]
[Result "0-1"]
[TimeControl "5400+30"]

1. e4 {[%clk 1:30:59]} 1... c5 {[%clk 1:30:52]} 2. Nf3 {[%clk 1:31:20]} 2... e6
{[%clk 1:31:06]} 3. d4 {[%clk 1:31:43]} 3... cxd4 {[%clk 1:31:19]} 4. Nxd4
{[%clk 1:32:05]} 4... a6 {[%clk 1:31:41]} 5. c4 {[%clk 1:32:24]} 5... Qc7 {[%clk
1:31:57]} 6. Nc3 {[%clk 1:31:28]} 6... Nf6 {[%clk 1:31:54]} 7. Be2 {[%clk
1:28:56]} 7... b6 {[%clk 1:31:48]} 8. O-O {[%clk 1:25:00]} 8... Bb7 {[%clk
1:31:27]} 9. Qd3 {[%clk 1:21:29]} 9... d6 {[%clk 1:26:35]} 10. Be3 {[%clk
1:16:27]} 10... Nbd7 {[%clk 1:24:59]} 11. Nb3 {[%clk 1:08:57]} 11... Be7 {[%clk
1:22:48]} 12. f4 {[%clk 1:02:39]} 12... O-O {[%clk 1:21:14]} 13. h3 {[%clk
0:56:08]} 13... Rac8 {[%clk 1:16:01]} 14. Rac1 {[%clk 0:51:39]} 14... Rfd8
{[%clk 1:13:38]} 15. Qb1 {[%clk 0:48:31]} 15... Qb8 {[%clk 1:07:52]} 16. Bd3
{[%clk 0:42:36]} 16... Nc5 {[%clk 0:59:39]} 17. Nxc5 {[%clk 0:42:18]} 17... bxc5
{[%clk 0:59:09]} 18. a4 {[%clk 0:32:04]} 18... Bc6 {[%clk 0:53:28]} 19. a5
{[%clk 0:27:21]} 19... h6 {[%clk 0:44:22]} 20. Qc2 {[%clk 0:23:08]} 20... Qc7
{[%clk 0:36:11]} 21. Ra1 {[%clk 0:20:58]} 21... Ra8 {[%clk 0:27:45]} 22. Na4
{[%clk 0:17:02]} 22... Qxa5 {[%clk 0:26:14]} 23. e5 {[%clk 0:15:25]} 23... Nd7
{[%clk 0:21:21]} 24. exd6 {[%clk 0:14:00]} 24... Bxd6 {[%clk 0:21:23]} 25. Nc3
{[%clk 0:12:01]} 25... Qb6 {[%clk 0:19:59]} 26. Ne4 {[%clk 0:11:13]} 26... Bxe4
{[%clk 0:19:52]} 27. Bxe4 {[%clk 0:11:37]} 27... Rab8 {[%clk 0:19:58]} 28. b4
{[%clk 0:10:15]} 28... Nf6 {[%clk 0:12:49]} 29. Bd3 {[%clk 0:09:17]} 29... Qc7
{[%clk 0:12:20]} 30. f5 {[%clk 0:07:32]} 30... Bh2+ {[%clk 0:11:14]} 31. Kh1
{[%clk 0:07:53]} 31... Nh5 {[%clk 0:10:41]} 32. Rf3 {[%clk 0:06:20]} 32... Be5
{[%clk 0:06:24]} 33. fxe6 {[%clk 0:05:06]} 33... Bxa1 {[%clk 0:05:02]} 34. Rxf7
{[%clk 0:04:32]} 34... Qd6 {[%clk 0:04:58]} 35. Bh7+ {[%clk 0:04:06]} 35... Kh8
{[%clk 0:05:25]} 36. Qg6 {[%clk 0:03:37]} 36... Qd1+ {[%clk 0:05:00]} 37. Kh2
{[%clk 0:03:58]} 37... Be5+ {[%clk 0:05:23]} 38. g3 Bxg3+ {[%clk 0:05:10]} 39.
Kg2 {[%clk 0:04:04]} 39... Qe2+ {[%clk 0:05:06]} 40. Bf2 {[%clk 0:03:59]} 40...
Bxf2 {[%clk 0:04:17]} 41. e7 {[%clk 0:02:58]} 41... Be3+ {[%clk 0:04:37]} 42.
Kh1 {[%clk 0:03:06]} 42... Rd1+ {[%clk 0:05:02]} 43. Rf1 {[%clk 0:03:05]} 43...
Rxf1+ {[%clk 0:05:27]} 44. Qg1 {[%clk 0:03:31]} 44... Ng3# {[%clk 0:05:54]} 0-1

[Variant "Standard"]
[Site "Europe Echecs"]

[Event "Championnat du monde jeunes U10"]
[Date "2024.11.23"]
[White "Garcia Tanjala, Marko"]
[Black "Ismailov, Omarbek"]
[WhiteElo "1833"]
[BlackElo "1625"]
[Round "8.41"]
[Result "1-0"]
[TimeControl "5400+30"]

1. e4 {[%clk 1:30:59]} 1... c5 {[%clk 1:30:55]} 2. Nf3 {[%clk 1:31:22]} 2... Nc6
{[%clk 1:31:19]} 3. d4 {[%clk 1:31:40]} 3... cxd4 {[%clk 1:31:45]} 4. Nxd4
{[%clk 1:32:03]} 4... Nf6 {[%clk 1:32:08]} 5. Nc3 {[%clk 1:32:26]} 5... e6
{[%clk 1:32:33]} 6. Ndb5 {[%clk 1:32:49]} 6... Bb4 {[%clk 1:32:55]} 7. a3 {[%clk
1:33:02]} 7... Bxc3+ {[%clk 1:33:18]} 8. Nxc3 {[%clk 1:33:29]} 8... h6 {[%clk
1:33:38]} 9. Qd6 {[%clk 1:33:35]} 9... Qe7 {[%clk 1:32:34]} 10. Bf4 {[%clk
1:32:33]} 10... e5 {[%clk 1:31:58]} 11. Qxe7+ Kxe7 {[%clk 1:32:15]} 12. Be3
{[%clk 1:32:18]} 12... d6 {[%clk 1:31:57]} 13. O-O-O {[%clk 1:26:34]} 13... Be6
{[%clk 1:31:01]} 14. Be2 {[%clk 1:25:06]} 14... a6 {[%clk 1:26:52]} 15. Bb6
{[%clk 1:24:46]} 15... Nd7 {[%clk 1:26:36]} 16. Be3 {[%clk 1:23:08]} 16... b5
{[%clk 1:22:28]} 17. Rd2 {[%clk 1:20:30]} 17... Rhd8 {[%clk 1:21:13]} 18. Rhd1
{[%clk 1:18:00]} 18... Nf6 {[%clk 1:21:30]} 19. h3 {[%clk 1:17:17]} 19... Rd7
{[%clk 1:18:38]} 20. Nd5+ {[%clk 1:14:02]} 20... Bxd5 {[%clk 1:18:40]} 21. exd5
{[%clk 1:14:13]} 21... Na5 {[%clk 1:17:05]} 22. b3 {[%clk 1:07:29]} 22... Rc8
{[%clk 1:16:02]} 23. Kb2 {[%clk 1:07:20]} 23... Rb7 {[%clk 1:09:03]} 24. f3
{[%clk 1:06:02]} 24... Kf8 {[%clk 1:02:23]} 25. Kb1 {[%clk 0:59:50]} 25... Rc3
{[%clk 0:59:53]} 26. Bf2 {[%clk 0:59:26]} 26... Re7 {[%clk 0:53:04]} 27. Kb2
{[%clk 0:58:55]} 27... Rc8 {[%clk 0:52:55]} 28. Bb6 {[%clk 0:59:02]} 28... Nb7
{[%clk 0:53:12]} 29. c4 {[%clk 0:59:24]} 29... bxc4 {[%clk 0:53:20]} 30. Bxc4
{[%clk 0:59:47]} 30... Ra8 {[%clk 0:53:03]} 31. b4 {[%clk 0:58:01]} 31... Nd7
{[%clk 0:52:42]} 32. Bf2 {[%clk 0:57:09]} 32... a5 {[%clk 0:52:55]} 33. Bb5
{[%clk 0:57:01]} 33... f5 {[%clk 0:51:02]} 34. Bc6 {[%clk 0:56:58]} 34... Nf6
{[%clk 0:51:07]} 35. Kb3 {[%clk 0:55:36]} 35... e4 {[%clk 0:51:10]} 36. Bd4
{[%clk 0:56:02]} 36... exf3 {[%clk 0:50:05]} 37. gxf3 {[%clk 0:54:45]} 37... Nh5
{[%clk 0:50:00]} 38. Rd3 {[%clk 0:53:25]} 38... a4+ {[%clk 0:49:26]} 39. Kc4
{[%clk 0:52:32]} 39... Rc8 {[%clk 0:48:42]} 40. Re3 {[%clk 0:51:56]} 40... Nd8
{[%clk 0:46:25]} 41. b5 {[%clk 0:52:12]} 41... Nxc6 {[%clk 0:45:26]} 42. dxc6
{[%clk 0:52:20]} 42... d5+ {[%clk 0:45:49]} 43. Kc5 {[%clk 0:52:26]} 43... Nf4
{[%clk 0:45:55]} 44. Rxe7 {[%clk 0:52:29]} 44... Kxe7 {[%clk 0:46:17]} 45. b6
{[%clk 0:52:02]} 45... Ne6+ {[%clk 0:46:27]} 46. Kb5 {[%clk 0:52:21]} 46... Kd6
{[%clk 0:46:42]} 47. b7 {[%clk 0:52:08]} 47... Rg8 {[%clk 0:46:01]} 48. Ba7
{[%clk 0:51:23]} 48... Nc7+ {[%clk 0:45:34]} 49. Kb6 {[%clk 0:51:27]} 49... Na8+
{[%clk 0:45:45]} 50. bxa8=Q {[%clk 0:51:39]} 50... Rxa8 {[%clk 0:46:10]} 51. Kb7
{[%clk 0:51:55]} 1-0

[Variant "Standard"]
[Site "Europe Echecs"]

[Event "Championnat du monde jeunes U10"]
[Date "2024.11.23"]
[White "Zhang, Oscar Y"]
[Black "Thorulsley, Kairaav"]
[WhiteElo "1817"]
[BlackElo "1520"]
[Round "8.42"]
[Result "1-0"]
[TimeControl "5400+30"]

1. e4 {[%clk 1:30:59]} 1... c5 {[%clk 1:30:56]} 2. Nf3 {[%clk 1:31:23]} 2... d6
{[%clk 1:31:21]} 3. d4 {[%clk 1:31:49]} 3... cxd4 {[%clk 1:31:47]} 4. Nxd4
{[%clk 1:32:15]} 4... Nf6 {[%clk 1:32:03]} 5. Nc3 {[%clk 1:32:37]} 5... a6
{[%clk 1:32:29]} 6. Bg5 {[%clk 1:33:01]} 6... e6 {[%clk 1:32:48]} 7. f4 {[%clk
1:33:23]} 7... Be7 {[%clk 1:33:08]} 8. Qf3 {[%clk 1:33:40]} 8... Nbd7 {[%clk
1:32:55]} 9. O-O-O {[%clk 1:33:44]} 9... h6 {[%clk 1:33:15]} 10. Bh4 {[%clk
1:33:25]} 10... g5 {[%clk 1:32:48]} 11. fxg5 {[%clk 1:33:20]} 11... Ne5 {[%clk
1:32:47]} 12. gxf6 {[%clk 1:22:15]} 12... Nxf3 {[%clk 1:31:57]} 13. fxe7 {[%clk
1:22:39]} 13... Qc7 {[%clk 1:32:15]} 14. gxf3 {[%clk 1:23:00]} 14... d5 {[%clk
1:31:45]} 15. Kb1 {[%clk 1:22:02]} 15... Qd6 {[%clk 1:26:27]} 16. Bh3 {[%clk
1:19:30]} 16... Bd7 {[%clk 1:12:01]} 17. Bf6 {[%clk 1:19:45]} 17... e5 {[%clk
1:04:44]} 18. Bxd7+ {[%clk 1:18:05]} 18... Kxd7 {[%clk 1:04:29]} 19. Bxh8 {[%clk
1:18:29]} 19... exd4 {[%clk 1:04:32]} 20. Bxd4 {[%clk 1:18:41]} 20... Kxe7
{[%clk 1:02:07]} 21. Nxd5+ {[%clk 1:18:57]} 21... Ke6 {[%clk 1:00:32]} 22. Bb6
{[%clk 1:18:46]} 22... Qc6 {[%clk 0:56:36]} 23. Nc7+ {[%clk 1:18:55]} 23... Ke7
{[%clk 0:56:51]} 24. Nxa8 {[%clk 1:19:14]} 24... Kf8 {[%clk 0:53:30]} 25. Bd4
{[%clk 1:19:15]} 25... Ke7 {[%clk 0:47:06]} 26. Nb6 {[%clk 1:19:31]} 26... Ke8
{[%clk 0:39:49]} 27. Rhg1 {[%clk 1:19:08]} 27... Ke7 {[%clk 0:30:01]} 28. Nd5+
{[%clk 1:18:33]} 28... Ke6 {[%clk 0:20:54]} 29. Rg8 {[%clk 1:18:16]} 29... Qa4
{[%clk 0:08:03]} 30. Re8+ {[%clk 1:18:23]} 30... Kd6 {[%clk 0:06:35]} 31. Be5+
{[%clk 1:18:35]} 31... Kc6 {[%clk 0:05:59]} 32. Rc8+ {[%clk 1:18:56]} 32... Kb5
{[%clk 0:05:51]} 33. c4+ {[%clk 1:19:17]} 33... Ka5 {[%clk 0:06:04]} 34. Bc3+
{[%clk 1:19:31]} 34... Qb4 {[%clk 0:06:23]} 35. Bxb4+ {[%clk 1:19:46]} 35... Ka4
{[%clk 0:06:43]} 36. Bc3 1-0

[Variant "Standard"]
[Site "Europe Echecs"]

[Event "Championnat du monde jeunes U10"]
[Date "2024.11.23"]
[White "Gomez Silva, Maximiliano"]
[Black "Mariani, Kim Paul"]
[WhiteElo "1643"]
[BlackElo "1814"]
[Round "8.43"]
[Result "1-0"]
[TimeControl "5400+30"]

1. d4 {[%clk 1:30:49]} 1... d5 {[%clk 1:30:04]} 2. Nf3 {[%clk 1:30:28]} 2... Nc6
{[%clk 1:29:12]} 3. g3 {[%clk 1:29:55]} 3... Bg4 {[%clk 1:28:57]} 4. Bg2 {[%clk
1:28:54]} 4... Qd7 {[%clk 1:27:35]} 5. c4 {[%clk 1:22:19]} 5... e6 {[%clk
1:21:43]} 6. b3 {[%clk 1:14:06]} 6... O-O-O {[%clk 1:18:48]} 7. e3 {[%clk
1:05:43]} 7... Bb4+ {[%clk 1:11:26]} 8. Bd2 {[%clk 1:03:40]} 8... Bxd2+ {[%clk
1:11:34]} 9. Nbxd2 {[%clk 1:02:39]} 9... Nb4 {[%clk 1:08:05]} 10. O-O {[%clk
0:59:11]} 10... Bf5 {[%clk 1:06:33]} 11. Ne5 {[%clk 0:51:48]} 11... Qe7 {[%clk
1:03:45]} 12. a3 {[%clk 0:32:29]} 12... Nd3 {[%clk 0:54:06]} 13. Nxd3 {[%clk
0:25:31]} 13... Bxd3 {[%clk 0:54:35]} 14. Re1 {[%clk 0:25:58]} 14... f5 {[%clk
0:52:52]} 15. c5 {[%clk 0:20:44]} 15... Nf6 {[%clk 0:50:52]} 16. Nf3 {[%clk
0:17:23]} 16... Bb5 {[%clk 0:49:58]} 17. a4 {[%clk 0:15:07]} 17... Bd7 {[%clk
0:47:51]} 18. b4 {[%clk 0:13:01]} 18... Rdg8 {[%clk 0:41:29]} 19. b5 {[%clk
0:09:48]} 19... c6 {[%clk 0:36:02]} 20. Qb3 {[%clk 0:06:45]} 20... g5 {[%clk
0:35:42]} 21. Reb1 {[%clk 0:05:27]} 21... f4 {[%clk 0:31:30]} 22. Ne5 {[%clk
0:04:15]} 22... Qe8 {[%clk 0:31:30]} 23. bxc6 {[%clk 0:02:29]} 23... Bxc6 {[%clk
0:31:51]} 24. a5 {[%clk 0:01:35]} 24... fxg3 25. fxg3 {[%clk 0:01:32]} 25... h5
{[%clk 0:30:04]} 26. a6 {[%clk 0:01:37]} 26... Rh7 {[%clk 0:29:50]} 27. Bf1
{[%clk 0:01:34]} 27... Kb8 {[%clk 0:28:39]} 28. Qa3 {[%clk 0:01:29]} 28... Rgg7
{[%clk 0:23:52]} 29. axb7 {[%clk 0:01:52]} 29... Rxb7 {[%clk 0:23:49]} 30. Qxa7+
{[%clk 0:02:15]} 30... Kc8 {[%clk 0:22:53]} 31. Ba6 {[%clk 0:02:24]} 31... h4
{[%clk 0:19:01]} 32. Bxb7+ {[%clk 0:02:38]} 32... Bxb7 {[%clk 0:19:10]} 33. c6
{[%clk 0:02:20]} 1-0

[Variant "Standard"]
[Site "Europe Echecs"]

[Event "Championnat du monde jeunes U10"]
[Date "2024.11.23"]
[White "Yrysov, Timur"]
[Black "Blekh, Erik"]
[WhiteElo "1604"]
[BlackElo "1790"]
[Round "8.44"]
[Result "0-1"]
[TimeControl "5400+30"]

1. e4 {[%clk 1:28:59]} 1... c5 {[%clk 1:30:39]} 2. Nf3 {[%clk 1:28:33]} 2... d6
{[%clk 1:30:49]} 3. d4 {[%clk 1:28:31]} 3... cxd4 {[%clk 1:30:59]} 4. Nxd4
{[%clk 1:28:00]} 4... Nf6 {[%clk 1:31:02]} 5. Nc3 {[%clk 1:27:45]} 5... g6
{[%clk 1:31:00]} 6. Bd3 {[%clk 1:27:27]} 6... Bg7 {[%clk 1:30:59]} 7. O-O {[%clk
1:26:52]} 7... O-O {[%clk 1:30:33]} 8. Qe2 {[%clk 1:26:13]} 8... Nc6 {[%clk
1:30:10]} 9. Nxc6 {[%clk 1:24:29]} 9... bxc6 {[%clk 1:30:26]} 10. h3 {[%clk
1:24:27]} 10... Rb8 {[%clk 1:25:56]} 11. Bc4 {[%clk 1:18:02]} 11... a5 {[%clk
1:22:05]} 12. Bb3 {[%clk 1:16:38]} 12... Qc7 {[%clk 1:19:21]} 13. Bf4 {[%clk
1:11:39]} 13... Nd7 {[%clk 1:17:02]} 14. Rad1 {[%clk 1:08:35]} 14... Nc5 {[%clk
1:16:30]} 15. Rfe1 {[%clk 1:02:38]} 15... Qa7 {[%clk 1:13:53]} 16. Be3 {[%clk
0:54:41]} 16... Qa8 {[%clk 1:08:06]} 17. Bxc5 {[%clk 0:51:31]} 17... dxc5 {[%clk
1:07:55]} 18. e5 {[%clk 0:48:33]} 18... Ba6 {[%clk 1:07:35]} 19. Qe4 {[%clk
0:42:34]} 19... Rb4 {[%clk 1:06:38]} 20. Qf3 {[%clk 0:41:16]} 20... c4 {[%clk
1:01:06]} 21. Ba4 {[%clk 0:41:34]} 21... Rxb2 {[%clk 0:59:47]} 22. Bxc6 {[%clk
0:41:05]} 22... Bb7 {[%clk 0:59:02]} 23. Bxb7 {[%clk 0:39:01]} 23... Rxb7 {[%clk
0:57:33]} 24. Rd4 {[%clk 0:36:49]} 24... Qa6 {[%clk 0:49:06]} 25. Qg4 {[%clk
0:32:37]} 25... Rb2 {[%clk 0:45:26]} 26. Rxc4 {[%clk 0:30:52]} 26... Rxc2 {[%clk
0:45:07]} 27. Qe4 {[%clk 0:29:00]} 27... Rd2 {[%clk 0:44:10]} 28. Nd5 {[%clk
0:27:14]} 28... Rxa2 {[%clk 0:40:00]} 29. Nxe7+ {[%clk 0:24:12]} 29... Kh8
{[%clk 0:39:34]} 30. Rc6 {[%clk 0:22:40]} 30... Qa7 {[%clk 0:39:08]} 31. Qc4
{[%clk 0:21:02]} 31... Qxf2+ {[%clk 0:38:41]} 32. Kh2 {[%clk 0:20:31]} 32...
Qxg2# {[%clk 0:39:03]} 0-1

[Variant "Standard"]
[Site "Europe Echecs"]